bitfinex-derivatives/quotes_ETHF0:USTF0_20250428
["timestamp","ask_amount","ask_price","bid_price","bid_amount"]
[1745813107529,5.97339,1787.6,1787.4,41.6216]
[1745813107723,6.4578,1787.6,1787.5,1.6593]
[1745813107928,3.2078,1787.6,1787.5,1.6593]
[1745813108124,3.2078,1787.6,1787.5,3.62522]
[1745813109030,3.2078,1787.6,1787.5,2.5067]
[1745813109425,3.2078,1787.6,1787.5,3.62522]
[1745813110026,3.2078,1787.7,1787.5,3.62522]
[1745813110333,3.2078,1787.8,1787.6,1.6521]
[1745813110529,3.2078,1787.8,1787.7,1.11836]
[1745813111431,1.11829,1787.9,1787.7,1.11836]
[1745813111631,1.11829,1787.9,1787.8,2.4941]
[1745813111927,1.11829,1787.9,1787.8,3.2858]
[1745813112833,1.11829,1787.9,1787.8,2.4941]
[1745813113025,3.48819,1787.9,1787.8,2.4941]
[1745813113622,1.11839,1787.7,1787.6,0.7917]
[1745813113827,1.11844,1787.7,1787.5,4.9141]
[1745813114532,2.69504,1787.7,1787.6,1.7063]
[1745813114734,1.11849,1787.6,1787.4,45.3723]
[1745813114930,3.50469,1787.6,1787.4,47.0786]
[1745813115234,1.11852,1787.5,1787.4,40.8]
[1745813115533,2.69512,1787.5,1787.4,40.8]
[1745813115736,2.78874946,1787.5,1787.4,40.8]
[1745813116432,2.69512,1787.5,1787.4,40.8]
[1745813116629,2.78874721,1787.5,1787.4,40.8]
[1745813116831,2.78874696,1787.5,1787.4,40.8]
[1745813118135,2.78874812,1787.5,1787.4,40.8]
[1745813119337,1.11864,1787.3,1787.2,1.6405]
[1745813119526,4.32644,1787.3,1787.2,1.6405]
[1745813119924,5.12904,1787.3,1787.2,40.8]
[1745813122838,5.2226784,1787.3,1787.2,40.8]
[1745813123838,8.9666784,1787.3,1787.2,40.8]
[1745813124234,10.7009784,1787.3,1787.2,40.8]
[1745813124739,10.70098176,1787.3,1787.2,40.8]
[1745813125843,10.70097561,1787.3,1787.2,40.8]
[1745813126033,11.56027561,1787.3,1787.2,40.8]
[1745813127532,1.11877,1787.1,1787.0,1.7312]
[1745813127731,4.32657,1787.1,1787.0,1.7312]
[1745813128137,1.11883,1787.0,1786.9,40.8]
[1745813128332,3.58393,1787.0,1786.9,40.8]
[1745813128738,4.32659,1787.1,1786.9,40.8]
[1745813129032,4.32659,1787.1,1787.0,1.5968]
[1745813129232,4.32659,1787.1,1787.0,2.4595]
[1745813130243,4.32659,1787.1,1787.0,1.5968]
[1745813135047,1.11883,1787.0,1786.9,40.8]
[1745813135244,1.94023,1787.0,1786.9,40.8]
[1745813136342,1.11883,1787.0,1786.9,40.8]
[1745813136942,2.73593,1787.0,1786.9,40.8]
[1745813137142,2.82958307,1787.0,1786.9,40.8]
[1745813139741,2.82958963,1787.0,1786.9,40.8]
[1745813142941,2.8295836,1787.0,1786.9,40.8]
[1745813144545,2.73593,1787.0,1786.9,40.8]
[1745813144750,2.82958375,1787.0,1786.9,40.8]
[1745813146053,2.73593,1787.0,1786.9,40.8]
[1745813146248,2.82958103,1787.0,1786.9,40.8]
[1745813147650,2.82958536,1787.0,1786.9,40.8]
[1745813149553,12.59875536,1787.0,1786.2,3.2078]
[1745813149749,1.11939,1786.2,1785.8,5.12286]
[1745813149946,1.11939,1786.2,1785.9,40.8]
[1745813150147,1.11939,1786.2,1785.9,44.602]
[1745813150346,1.11946,1786.0,1785.9,44.602]
[1745813150547,1.11941,1786.1,1785.9,44.602]
[1745813151055,1.11941,1786.1,1786.0,2.5339]
[1745813152150,3.2078,1786.2,1786.0,2.5339]
[1745813152356,4.32718,1786.2,1786.1,1.7324]
[1745813152566,1.11939,1786.1,1786.0,0.8015]
[1745813152764,2.73399,1786.1,1786.0,41.6015]
[1745813153852,1.11939,1786.1,1786.0,41.6015]
[1745813154156,4.32717,1786.2,1786.0,41.6015]
[1745813154457,4.32717,1786.2,1786.1,1.6604]
[1745813155259,4.42086879,1786.2,1786.1,1.6604]
[1745813156561,8.05817,1786.2,1786.1,1.6604]
[1745813156964,1.11932,1786.3,1786.1,1.6604]
[1745813157160,11.00657,1786.4,1786.1,2.4687]
[1745813157361,1.11927,1786.3,1786.1,2.4687]
[1745813157555,3.2078,1786.4,1786.2,1.6551]
[1745813157761,4.32702,1786.4,1786.2,1.6551]
[1745813158061,1.11927,1786.3,1786.2,1.6551]
[1745813158358,3.2078,1786.4,1786.2,1.6551]
[1745813158560,6.9388,1786.6,1786.2,1.6551]
[1745813158861,4.32688,1786.6,1786.3,1.11923]
[1745813159055,4.32688,1786.6,1786.4,2.4339]
[1745813159261,4.32688,1786.6,1786.5,1.6453]
[1745813159262,1.11908,1786.6,1786.5,1.6453]
[1745813159460,1.11908,1786.6,1786.5,2.4563]
[1745813160863,4.32688,1786.6,1786.5,2.4563]
[1745813162766,4.32688,1786.6,1786.5,1.6453]
[1745813162957,6.04105635,1786.6,1786.5,1.6453]
[1745813163154,5.94738,1786.6,1786.5,1.6453]
[1745813163358,4.32688,1786.6,1786.5,1.6453]
[1745813168971,3.2078,1786.8,1786.5,2.76444]
[1745813169163,1.11902,1786.7,1786.6,0.8087]
[1745813170177,2.71582,1786.7,1786.6,0.8087]
[1745813173578,1.11911,1786.6,1786.4,1.90776]
[1745813173777,1.11911,1786.6,1786.4,2.72856]
[1745813175384,1.11911,1786.6,1786.5,1.11914]
[1745813175686,1.11911,1786.6,1786.4,2.72857]
[1745813177388,1.95741,1786.6,1786.4,2.72857]
[1745813177579,1.95741,1786.6,1786.5,1.11914]
[1745813178479,1.95741,1786.6,1786.4,2.72856]
[1745813178679,1.11914,1786.5,1786.4,1.6094]
[1745813179081,1.11914,1786.5,1786.4,0.7886]
[1745813179280,2.75714,1786.5,1786.4,0.7886]
[1745813180388,1.638,1786.5,1786.3,1.11923]
[1745813180689,1.713,1786.4,1786.3,1.11923]
[1745813181678,2.83221,1786.4,1786.3,1.11923]
[1745813182186,1.713,1786.4,1786.2,1.91461]
[1745813182382,1.713,1786.4,1786.2,0.7953]
[1745813182587,2.83223,1786.4,1786.3,1.11927]
[1745813182988,2.83223,1786.4,1786.3,2.78667]
[1745813184486,1.713,1786.4,1786.3,2.78667]
[1745813184687,1.94059,1786.5,1786.3,2.78667]
[1745813184885,1.94059,1786.5,1786.4,1.6674]
[1745813185079,3.65759,1786.5,1786.4,1.6674]
[1745813187685,5.33631,1786.5,1786.1,3.2078]
[1745813187898,1.11936,1786.2,1786.0,48.17133]
[1745813188191,1.11936,1786.2,1786.1,1.6644]
[1745813189092,2.80866,1786.2,1786.1,1.6644]
[1745813190090,0.8695,1786.3,1786.1,2.78379]
[1745813190091,1.98882,1786.3,1786.1,2.78379]
[1745813190390,3.67812,1786.3,1786.1,3.64629]
[1745813190591,3.67812,1786.3,1786.2,1.7229]
[1745813191090,3.67812,1786.3,1786.2,5.5249]
[1745813192187,3.2078,1786.4,1786.2,6.64423]
[1745813192393,3.2078,1786.4,1786.3,1.5769]
[1745813192688,4.32701,1786.4,1786.3,1.5769]
[1745813193091,4.32701,1786.4,1786.3,5.3789]
[1745813194094,5.92531,1786.4,1786.3,5.3789]
[1745813197194,5.92531,1786.4,1786.3,3.802]
[1745813197591,6.01899799,1786.4,1786.3,3.802]
[1745813198088,1.11932,1786.3,1786.1,1.6048]
[1745813198292,1.6166,1786.3,1786.1,1.6048]
[1745813198482,0.8246,1786.2,1786.1,1.6048]
[1745813198892,1.11939,1786.1,1786.0,41.6575]
[1745813199082,2.73599,1786.1,1786.0,45.4595]
[1745813199693,2.73599,1786.1,1786.0,47.1546]
[1745813200790,0.8246,1786.2,1786.0,48.27404]
[1745813200993,4.32703,1786.4,1786.1,1.6951]
[1745813201192,4.32703,1786.4,1786.1,2.81444]
[1745813201393,4.32703,1786.4,1786.2,0.8223]
[1745813201592,4.32703,1786.4,1786.3,1.6447]
[1745813201787,5.94983,1786.4,1786.3,1.6447]
[1745813202190,5.94983,1786.4,1786.3,5.4467]
[1745813205092,5.94983,1786.4,1786.3,3.802]
[1745813206098,1.11927,1786.3,1786.2,1.7006]
[1745813206299,3.57377,1786.3,1786.2,1.7006]
[1745813207198,3.57377,1786.3,1786.2,5.5026]
[1745813207699,3.57377,1786.3,1786.2,3.802]
[1745813208294,3.57377,1786.3,1786.2,5.4468]
[1745813211998,3.57377,1786.3,1786.2,3.802]
[1745813213204,3.57377,1786.3,1786.0,40.8]
[1745813213205,1.11939,1786.1,1786.0,40.8]
[1745813213405,4.32719,1786.1,1786.0,40.8]
[1745813213904,6.01959,1786.1,1786.0,40.8]
[1745813215210,6.01959,1786.1,1786.0,45.4378]
[1745813215897,6.01959,1786.1,1786.0,44.602]
[1745813216299,6.01959,1786.1,1786.0,40.8]
[1745813218707,6.11329253,1786.1,1786.0,40.8]
[1745813220102,6.11329357,1786.1,1786.0,40.8]
[1745813220502,6.56487277,1786.1,1786.0,40.8]
[1745813221503,5.44548277,1786.1,1785.8,2.5588]
[1745813221710,1.11976,1785.6,1785.5,2.431]
[1745813222103,1.11976,1785.6,1785.5,47.033]
[1745813222607,4.32748,1785.7,1785.5,47.033]
[1745813222907,4.32748,1785.7,1785.6,1.657]
[1745813223107,3.2078,1785.7,1785.6,2.4739]
[1745813223307,4.32732,1785.9,1785.6,3.59356]
[1745813223507,4.32732,1785.9,1785.7,1.657]
[1745813223508,1.11958,1785.8,1785.7,1.657]
[1745813224114,1.11958,1785.8,1785.7,5.459]
[1745813224701,2.76788,1785.8,1785.7,5.459]
[1745813225304,2.76788,1785.8,1785.7,3.802]
[1745813225812,2.86160094,1785.8,1785.7,3.802]
[1745813226108,2.86160139,1785.8,1785.7,3.802]
[1745813226310,1.11965,1785.7,1785.6,1.7094]
[1745813226510,1.11971,1785.6,1785.5,40.8]
[1745813226698,1.96271,1785.6,1785.5,40.8]
[1745813226898,4.39881,1785.6,1785.5,40.8]
[1745813227109,4.49254281,1785.6,1785.5,44.602]
[1745813227309,4.4925431,1785.6,1785.5,44.602]
[1745813227902,4.39881,1785.6,1785.5,44.602]
[1745813228300,4.49254404,1785.6,1785.5,44.602]
[1745813228502,1.94371,1785.6,1785.5,44.602]
[1745813229103,1.94371,1785.6,1785.5,46.3386]
[1745813229409,2.03744183,1785.6,1785.5,46.3386]
[1745813229609,3.64664183,1785.6,1785.5,46.3386]
[1745813230610,3.55291,1785.6,1785.5,46.3386]
[1745813232111,3.64663918,1785.6,1785.5,44.602]
[1745813232308,3.6466439,1785.6,1785.5,44.602]
[1745813232713,3.6466439,1785.6,1785.5,3.802]
[1745813233218,3.6466439,1785.6,1785.2,3.3127]
[1745813233219,1.1199,1785.3,1785.2,3.3127]
[1745813233711,4.32767,1785.4,1785.2,44.1127]
[1745813233911,4.32767,1785.4,1785.3,1.6]
[1745813234410,5.98887,1785.4,1785.3,5.402]
[1745813234907,3.2078,1785.4,1785.3,5.402]
[1745813235509,3.2078,1785.4,1785.3,6.5219]
[1745813235918,3.2078,1785.4,1785.3,5.402]
[1745813236713,4.32763,1785.4,1785.3,5.402]
[1745813237309,3.2078,1785.4,1785.3,5.402]
[1745813237519,4.32763,1785.4,1785.3,5.402]
[1745813237712,3.2078,1785.4,1785.3,5.402]
[1745813238016,1.11971,1785.6,1785.3,10.402]
[1745813238317,1.11971,1785.6,1785.4,2.73338]
[1745813238507,1.11971,1785.6,1785.5,2.4437]
[1745813238707,1.11971,1785.6,1785.5,3.2682]
[1745813239309,3.61851,1785.6,1785.5,7.0702]
[1745813242513,3.61851,1785.6,1785.5,6.2457]
[1745813242814,4.46341,1785.6,1785.5,6.2457]
[1745813252619,4.46341,1785.6,1785.5,3.802]
[1745813254425,4.55714277,1785.6,1785.5,3.802]
[1745813255224,1.11977,1785.5,1785.4,5.4668]
[1745813255423,4.32757,1785.5,1785.4,5.4668]
[1745813256318,3.2078,1785.5,1785.4,5.4668]
[1745813256525,1.98654,1785.6,1785.4,5.4668]
[1745813256721,1.98654,1785.6,1785.5,1.6763]
[1745813256923,3.71794,1785.6,1785.5,1.6763]
[1745813257122,3.71794,1785.6,1785.5,5.4783]
[1745813257724,3.71794,1785.6,1785.5,3.802]
[1745813257921,3.81167273,1785.6,1785.5,3.802]
[1745813258117,1.11983,1785.4,1785.3,3.2924]
[1745813258519,1.1199,1785.3,1785.2,40.8]
[1745813258728,1.9409,1785.3,1785.2,40.8]
[1745813259222,1.9409,1785.3,1785.2,44.602]
[1745813259713,1.9409,1785.3,1785.2,45.4037]
[1745813261227,6.9038,1785.5,1785.2,46.2216]
[1745813261429,8.0236,1785.5,1785.3,1.6455]
[1745813261628,1.11983,1785.4,1785.3,1.6455]
[1745813262128,1.11983,1785.4,1785.3,5.4475]
[1745813262625,9.66791,1785.5,1785.3,5.4475]
[1745813262825,9.66791,1785.5,1785.4,1.7044]
[1745813263126,9.66791,1785.5,1785.4,5.5064]
[1745813264626,8.02361,1785.5,1785.4,5.5064]
[1745813273619,4.81581,1785.5,1785.4,5.5064]
[1745813276632,1.11981,1785.5,1785.4,5.5064]
[1745813281837,1.11981,1785.5,1785.4,6.62623]
[1745813282534,1.11981,1785.5,1785.4,5.5064]
[1745813282727,1.11981,1785.5,1785.4,6.62623]
[1745813283835,1.11981,1785.5,1785.4,5.5064]
[1745813284940,3.2078,1785.7,1785.6,1.11969]
[1745813285634,3.2078,1785.7,1785.6,2.74209]
[1745813285834,5.7381,1786.0,1785.7,1.11962]
[1745813286033,1.11956,1785.9,1785.8,3.3114]
[1745813286737,1.11956,1785.9,1785.7,3.802]
[1745813286935,2.85418,1785.8,1785.7,3.802]
[1745813287341,6.06198,1785.8,1785.7,3.802]
[1745813288131,11.06198,1785.8,1785.7,3.802]
[1745813288332,11.15570318,1785.8,1785.7,3.802]
[1745813289141,1.11974,1785.6,1785.4,1.6216]
[1745813289331,0.8099,1785.5,1785.4,1.6216]
[1745813289531,2.4377,1785.5,1785.4,1.6216]
[1745813290236,2.4377,1785.5,1785.4,5.4236]
[1745813290830,3.55747,1785.5,1785.4,5.4236]
[1745813291643,4.32755,1785.6,1785.4,6.54343]
[1745813291839,4.32755,1785.6,1785.5,1.607]
[1745813292237,4.32755,1785.6,1785.5,5.409]
[1745813296349,3.2078,1785.6,1785.5,11.52877]
[1745813298945,1.11963,1785.8,1785.6,1.11966]
[1745813299146,1.11963,1785.8,1785.7,2.5168]
[1745813299347,2.76923,1785.8,1785.7,2.5168]
[1745813299554,3.61403,1785.8,1785.7,2.5168]
[1745813300153,3.61403,1785.8,1785.7,3.802]
[1745813301251,0.8495,1786.0,1785.7,3.802]
[1745813301449,1.96897,1786.0,1785.8,3.67227]
[1745813301645,1.96897,1786.0,1785.9,2.5168]
[1745813302251,1.96897,1786.0,1785.9,6.3188]
[1745813302653,5.97684,1786.1,1785.9,7.43832]
[1745813302856,5.97684,1786.1,1786.0,1.6742]
[1745813304254,5.97684,1786.1,1786.0,5.4762]
[1745813305051,2.76904,1786.1,1786.0,5.4762]
[1745813305653,5.97684,1786.1,1786.0,5.4762]
[1745813309361,5.97684,1786.1,1786.0,3.802]
[1745813310260,1.11952,1785.9,1785.8,5.2991]
[1745813311262,2.85462,1785.9,1785.8,9.1011]
[1745813314963,2.85462,1785.9,1785.8,5.4081]
[1745813317565,1.11952,1785.9,1785.8,5.4081]
[1745813318460,1.11948,1786.0,1785.8,5.4081]
[1745813318662,3.2078,1786.1,1785.9,2.83281]
[1745813318860,4.32719,1786.1,1786.0,3.3279]
[1745813319268,4.32719,1786.1,1786.0,7.1299]
[1745813324973,1.11939,1786.1,1786.0,7.1299]
[1745813330982,1.11939,1786.1,1786.0,8.24936]
[1745813334072,2.72799,1786.1,1786.0,8.24936]
[1745813334479,2.72799,1786.1,1786.0,7.1299]
[1745813336582,2.72799,1786.1,1786.0,6.3345]
[1745813342287,1.11939,1786.1,1786.0,48.25396]
[1745813342491,5.17198,1786.2,1786.0,48.25396]
[1745813342784,5.17198,1786.2,1786.1,1.7166]
[1745813342984,6.81078,1786.2,1786.1,1.7166]
[1745813343383,6.81078,1786.2,1786.1,42.5166]
[1745813344191,1.97922,1786.3,1786.1,42.5166]
[1745813344389,1.97922,1786.3,1786.2,1.6426]
[1745813344585,0.8174,1786.5,1786.3,1.11922]
[1745813344887,1.95004,1786.5,1786.4,1.6426]
[1745813345088,1.95004,1786.5,1786.4,46.2446]
[1745813347587,3.63944,1786.5,1786.4,46.2446]
[1745813347787,3.63944,1786.5,1786.4,44.602]
[1745813348189,3.63944,1786.5,1786.4,40.8]
[1745813350191,3.63944,1786.5,1786.4,44.602]
[1745813353293,6.84724,1786.5,1786.4,44.602]
[1745813354188,1.11933,1786.2,1786.1,0.827]
[1745813354388,1.11933,1786.2,1786.0,3.692]
[1745813354389,1.11939,1786.1,1786.0,3.692]
[1745813354597,1.11946,1786.0,1785.9,1.5822]
[1745813354896,1.11946,1786.0,1785.9,42.3822]
[1745813355082,2.77076,1786.0,1785.9,42.3822]
[1745813355287,2.77076,1786.0,1785.9,46.1842]
[1745813357590,10.97856,1786.0,1785.9,3.802]
[1745813358099,1.11962,1785.8,1785.6,41.6378]
[1745813358300,4.32742,1785.8,1785.6,43.2804]
[1745813358795,5.18752,1785.8,1785.6,43.2804]
[1745813358999,5.18752,1785.8,1785.7,1.6426]
[1745813359391,1.11965,1785.7,1785.6,41.6378]
[1745813359590,2.81625,1785.7,1785.6,41.6378]
[1745813361195,2.81625,1785.7,1785.6,43.2169]
[1745813361694,2.81625,1785.7,1785.6,40.8]
[1745813365504,2.81625,1785.7,1785.6,42.4282]
[1745813378219,6.02405,1785.7,1785.6,42.4282]
[1745813380422,3.2078,1785.7,1785.6,42.4282]
[1745813380615,3.2078,1785.7,1785.6,43.54791]
[1745813383319,3.2078,1785.7,1785.6,42.4282]
[1745813384420,3.2078,1785.7,1785.6,43.54791]
[1745813385517,3.2078,1785.7,1785.6,42.4282]
[1745813385819,4.32745,1785.7,1785.6,42.4282]
[1745813386214,4.32745,1785.7,1785.6,40.8]
[1745813387214,5.99275,1785.7,1785.6,40.8]
[1745813391423,4.32745,1785.7,1785.6,40.8]
[1745813393416,6.07575,1785.7,1785.6,40.8]
[1745813396128,5.04982699,1785.7,1785.4,0.8131]
[1745813396327,4.32757,1785.5,1785.4,0.8131]
[1745813396824,6.01607,1785.5,1785.4,0.8131]
[1745813398229,6.01607,1785.5,1785.4,4.6151]
[1745813399523,4.32757,1785.5,1785.4,4.6151]
[1745813399727,3.2078,1785.5,1785.4,4.6151]
[1745813400229,4.32748,1785.7,1785.4,7.43743]
[1745813400428,3.2078,1785.7,1785.5,3.63037]
[1745813400620,4.32745,1785.7,1785.6,1.7025]
[1745813402028,4.32745,1785.7,1785.6,42.5025]
[1745813404630,1.11965,1785.7,1785.6,42.5025]
[1745813404831,4.32745,1785.7,1785.6,42.5025]
[1745813405224,3.2078,1785.7,1785.6,42.5025]
[1745813406230,4.32745,1785.7,1785.6,42.5025]
[1745813406832,3.2078,1785.7,1785.6,43.62221]
[1745813407832,4.32745,1785.7,1785.6,43.62221]
[1745813408733,3.2078,1785.7,1785.6,43.62221]
[1745813409433,4.32745,1785.7,1785.6,43.62221]
[1745813409733,3.2078,1785.7,1785.6,43.62221]
[1745813413530,5.7047,1786.0,1785.6,45.7103]
[1745813413731,1.11946,1786.0,1785.8,1.11958]
[1745813414037,1.11946,1786.0,1785.9,2.5654]
[1745813414230,1.11946,1786.0,1785.9,3.68492]
[1745813414425,1.11946,1786.0,1785.9,44.48492]
[1745813414827,1.11946,1786.0,1785.9,43.3654]
[1745813415131,1.11946,1786.0,1785.9,47.1674]
[1745813416328,1.11946,1786.0,1785.9,48.28692]
[1745813420035,7.7301,1786.2,1786.1,1.11939]
[1745813420036,0.8323,1786.2,1786.1,1.11939]
[1745813420336,3.2078,1786.6,1786.0,8.91962]
[1745813420532,3.2078,1786.6,1786.5,1.11914]
[1745813420733,4.32688,1786.6,1786.4,1.11916]
[1745813421036,4.32688,1786.6,1786.5,3.2911]
[1745813421239,4.32688,1786.6,1786.5,7.0931]
[1745813425344,5.18388,1786.6,1786.5,7.0931]
[1745813428244,6.90038,1786.6,1786.5,7.0931]
[1745813429347,6.90038,1786.6,1786.5,3.802]
[1745813430244,1.11921,1786.4,1786.3,1.6659]
[1745813430546,2.75019,1786.5,1786.3,1.6659]
[1745813430842,1.11921,1786.4,1786.3,1.6659]
[1745813432141,1.11921,1786.4,1786.3,5.4679]
[1745813433144,2.75018,1786.5,1786.3,6.58717]
[1745813433345,2.75018,1786.5,1786.4,1.7314]
[1745813433645,2.75018,1786.5,1786.4,2.5572]
[1745813434039,5.18393,1786.6,1786.4,3.67641]
[1745813434343,5.18393,1786.6,1786.5,2.5726]
[1745813435149,5.18393,1786.6,1786.5,6.3746]
[1745813435343,4.32693,1786.6,1786.5,6.3746]
[1745813435534,4.32693,1786.6,1786.5,7.49374]
[1745813436340,4.32693,1786.6,1786.5,6.3746]
[1745813436945,1.11906,1786.7,1786.5,11.18074]
[1745813437138,1.11906,1786.7,1786.6,1.6756]
[1745813437844,4.32686,1786.7,1786.6,1.6756]
[1745813438043,1.11906,1786.7,1786.6,1.6756]
[1745813438240,4.32686,1786.7,1786.6,1.6756]
[1745813439048,1.11906,1786.7,1786.6,1.6756]
[1745813439547,4.32686,1786.7,1786.6,1.6756]
[1745813441349,3.2078,1786.7,1786.6,2.79468]
[1745813441646,4.32661,1787.1,1786.9,1.11888]
[1745813441841,3.2078,1787.1,1786.9,1.11888]
[1745813442040,4.32661,1787.1,1787.0,41.6196]
[1745813442451,5.95321,1787.1,1787.0,41.6196]
[1745813443245,5.95321,1787.1,1787.0,40.8]
[1745813445752,1.11896,1786.8,1786.7,3.686]
[1745813446049,1.11908,1786.6,1786.5,0.797]
[1745813446949,1.11908,1786.6,1786.5,41.597]
[1745813447154,1.11908,1786.6,1786.5,45.399]
[1745813448552,2.84858,1786.6,1786.5,45.399]
[1745813450151,2.84858,1786.6,1786.5,41.597]
[1745813450747,1.11908,1786.6,1786.5,41.597]
[1745813450951,2.80044,1786.7,1786.5,41.597]
[1745813451150,1.11904,1786.7,1786.5,45.399]
[1745813451540,3.2078,1786.8,1786.5,45.399]
[1745813451743,1.11907,1786.7,1786.5,46.51814]
[1745813452160,1.11907,1786.7,1786.5,42.71614]
[1745813452450,1.11908,1786.6,1786.5,41.597]
[1745813452750,1.11908,1786.6,1786.5,42.71614]
[1745813453154,1.11908,1786.6,1786.5,46.51814]
[1745813453353,1.11908,1786.6,1786.5,48.19954]
[1745813455253,1.11906,1786.7,1786.5,48.19954]
[1745813455458,1.11899,1786.8,1786.6,2.74263]
[1745813455755,1.11899,1786.8,1786.7,1.6236]
[1745813456048,1.11899,1786.8,1786.7,43.2807]
[1745813457251,1.11899,1786.8,1786.7,42.4236]
[1745813457754,4.32679,1786.8,1786.7,42.4236]
[1745813458856,3.2078,1786.8,1786.7,42.4236]
[1745813459154,0.8047,1787.0,1786.9,1.11889]
[1745813459349,0.8047,1787.0,1786.8,4.40904]
[1745813459655,0.8047,1787.0,1786.9,1.6489]
[1745813460557,1.1189,1786.9,1786.7,40.8]
[1745813460754,1.6243,1786.8,1786.7,40.8]
[1745813460952,2.74326,1786.8,1786.7,42.5334]
[1745813461350,1.6243,1786.8,1786.7,43.65242]
[1745813462761,0.8307,1786.9,1786.7,43.65242]
[1745813462956,1.9496,1786.9,1786.8,2.5946]
[1745813463158,3.54787,1787.0,1786.8,4.54406]
[1745813463356,3.54787,1787.0,1786.9,1.7334]
[1745813463558,1.92357,1787.0,1786.9,1.7334]
[1745813464863,3.2078,1787.1,1786.9,1.7334]
[1745813465061,1.97113,1787.0,1786.9,1.7334]
[1745813466367,1.11889,1786.9,1786.8,0.8612]
[1745813466663,0.7887,1786.9,1786.8,1.98016]
[1745813466863,0.8523,1787.0,1786.9,1.11889]
[1745813467162,0.8523,1787.0,1786.9,1.92479]
[1745813467462,1.97113,1787.0,1786.9,2.506]
[1745813468163,0.8523,1787.0,1786.9,3.62489]
[1745813468363,1.97113,1787.0,1786.9,2.506]
[1745813468863,0.8523,1787.0,1786.9,3.62489]
[1745813469865,1.97113,1787.0,1786.9,3.62489]
[1745813470065,1.97113,1787.0,1786.9,2.506]
[1745813470670,1.97113,1787.0,1786.9,3.62489]
[1745813471767,0.8523,1787.0,1786.9,3.62489]
[1745813471968,4.32658,1787.1,1786.9,3.62489]
[1745813472164,4.32658,1787.1,1787.0,1.6669]
[1745813472763,5.9077,1787.5,1787.0,4.8747]
[1745813472975,1.13825,1787.5,1787.3,1.11861]
[1745813473270,0.0197,1787.5,1787.4,1.93198]
[1745813473460,0.0197,1787.5,1787.4,1.9600741]
[1745813474767,1.13822,1787.5,1787.4,0.8414941]
[1745813475070,0.0197,1787.5,1787.4,1.9600741]
[1745813475267,1.13822,1787.5,1787.4,3.6057741]
[1745813475471,0.0197,1787.5,1787.4,3.6057741]
[1745813475768,1.13822,1787.5,1787.4,2.4871941]
[1745813475970,0.0197,1787.5,1787.4,3.6057741]
[1745813481876,1.13822,1787.5,1787.4,0.0280941]
[1745813482167,6.23183745,1787.5,1787.4,0.0280941]
[1745813482773,6.23185755,1787.5,1787.4,0.0280941]
[1745813483374,7.94475755,1787.5,1787.4,0.0280941]
[1745813485672,7.94475755,1787.5,1787.4,4.1e-06]
[1745813485874,1.11885,1787.0,1786.8,3.2691]
[1745813486076,4.32661,1787.1,1786.9,1.6598]
[1745813486573,1.6927,1787.0,1786.9,1.6598]
[1745813486776,2.81153,1787.0,1786.9,1.6598]
[1745813486968,2.5284,1787.0,1786.9,1.6598]
[1745813488680,3.64723,1787.0,1786.9,1.6598]
[1745813488877,4.46733,1787.0,1786.9,1.6598]
[1745813490076,3.2078,1787.1,1786.9,1.6598]
[1745813490270,3.2078,1787.1,1786.9,2.77868]
[1745813490578,4.32657,1787.1,1786.9,2.77868]
[1745813490779,4.32657,1787.1,1787.0,1.5829]
[1745813492081,3.2078,1787.1,1787.0,2.70173]
[1745813492274,3.2078,1787.1,1787.0,1.5829]
[1745813492475,4.32657,1787.1,1787.0,1.5829]
[1745813492879,1.11889,1786.9,1786.8,0.8213]
[1745813493271,1.11889,1786.9,1786.8,2.4147]
[1745813493674,3.68569,1787.0,1786.8,2.4147]
[1745813493883,3.68569,1787.0,1786.9,1.5934]
[1745813494477,1.11889,1786.9,1786.8,0.8213]
[1745813494782,2.76229,1786.9,1786.8,2.557]
[1745813495682,1.6434,1786.9,1786.8,2.557]
[1745813496481,2.76229,1786.9,1786.8,2.557]
[1745813496983,1.6434,1786.9,1786.8,2.557]
[1745813497190,2.76229,1786.9,1786.8,2.557]
[1745813500386,1.6434,1786.9,1786.8,2.557]
[1745813500589,1.6434,1786.9,1786.7,40.8]
[1745813500590,1.11896,1786.8,1786.7,40.8]
[1745813500780,1.92216,1786.8,1786.7,40.8]
[1745813500975,3.62696,1786.8,1786.7,40.8]
[1745813503781,2.508,1786.8,1786.7,40.8]
[1745813503987,3.2078,1786.9,1786.7,43.2917]
[1745813504188,3.2078,1786.9,1786.8,1.6707]
[1745813504383,3.2078,1786.9,1786.8,2.4892]
[1745813505181,2.86795,1787.0,1786.8,2.4892]
[1745813505381,2.86795,1787.0,1786.9,1.6707]
[1745813505586,1.7491,1787.0,1786.9,1.6707]
[1745813506686,2.86793,1787.0,1786.9,1.6707]
[1745813508092,1.7491,1787.0,1786.9,1.6707]
[1745813508289,2.86793,1787.0,1786.9,1.6707]
[1745813509494,1.7491,1787.0,1786.9,1.6707]
[1745813510090,2.86793,1787.0,1786.9,1.6707]
[1745813512394,3.66083,1787.0,1786.9,1.6707]
[1745813514786,1.7491,1787.0,1786.9,1.6707]
[1745813515495,1.7491,1787.0,1786.9,2.78959]